bitfinex-derivatives/quotes_ETHF0:USTF0_20250126
["timestamp","ask_amount","ask_price","bid_price","bid_amount"]
[1737873914438,3.46886012,3346.0,3345.9,3.80569]
[1737873918454,3.46886012,3346.0,3345.7,0.59791]
[1737873918455,4.06674012,3346.0,3345.7,0.59791]
[1737873918756,3.46886012,3346.0,3345.8,0.59789]
[1737873918944,3.46886012,3346.0,3345.9,0.59789]
[1737873924447,3.46886012,3346.0,3345.9,3.80569]
[1737873928060,3.46886012,3346.0,3345.9,0.59789]
[1737873930562,3.46886012,3346.0,3345.9,3.80569]
[1737873930955,2.04016012,3346.3,3345.9,3.2078]
[1737873931163,2.04016012,3346.3,3346.2,0.59784]
[1737873935263,2.40087649,3346.3,3346.2,0.59784]
[1737873935464,2.40087649,3346.3,3345.9,3.2078]
[1737873935664,0.36077275,3346.2,3346.0,0.59786]
[1737873935965,0.96565495,3346.1,3345.9,3.80568]
[1737873936262,0.4932,3346.0,3345.9,3.80568]
[1737873936463,1.0065,3346.0,3345.9,3.80568]
[1737873938365,1.0065,3346.0,3345.9,0.59788]
[1737873940366,1.36789501,3346.0,3345.9,0.59788]
[1737873945369,1.36790232,3346.0,3345.9,0.59788]
[1737873946968,1.0065,3346.0,3345.9,0.59788]
[1737873947371,1.36790876,3346.0,3345.9,0.59788]
[1737873952271,0.96565495,3346.3,3345.8,3.2078]
[1737873952474,0.96565495,3346.3,3346.2,3.80564]
[1737873952672,1.32698629,3346.3,3346.2,3.80564]
[1737873954574,0.96565495,3346.3,3346.2,3.80564]
[1737873960776,0.96565495,3346.5,3346.4,0.5978]
[1737873976381,1.32649412,3346.5,3346.4,0.5978]
[1737873976588,2.41237412,3346.5,3346.4,0.5978]
[1737873976788,2.41237412,3346.5,3346.3,3.2078]
[1737873976789,0.5978,3346.4,3346.3,3.2078]
[1737873976986,1.47873917,3346.4,3346.3,3.2078]
[1737873983883,1.47873917,3346.4,3346.1,3.80565]
[1737873984084,0.86343917,3346.3,3346.1,3.80565]
[1737873984284,0.96565495,3346.2,3346.1,3.80565]
[1737873986192,1.32662133,3346.2,3346.1,3.80565]
[1737873987299,0.96565495,3346.2,3346.1,3.80565]
[1737873991397,0.96565495,3346.2,3346.1,3.2078]
[1737873991602,1.56349495,3346.2,3346.1,3.2078]
[1737873992193,1.92446614,3346.2,3346.1,3.2078]
[1737873992793,1.32662614,3346.2,3346.1,3.2078]
[1737873993889,1.32662614,3346.2,3346.1,3.80566]
[1737873996889,1.32662614,3346.2,3346.1,0.59786]
[1737873997901,1.32658522,3346.2,3346.1,0.59786]
[1737874004999,0.96565495,3346.2,3346.1,0.59786]
[1737874006903,0.96565495,3346.2,3346.1,3.80566]
[1737874009005,1.32695597,3346.2,3346.1,3.80566]
[1737874009503,0.96565495,3346.2,3346.1,3.80566]
[1737874024115,1.32677101,3346.2,3346.1,3.2078]
[1737874024316,1.32677101,3346.2,3346.1,3.80566]
[1737874024823,1.83437101,3346.2,3346.1,3.80566]
[1737874034820,1.83437101,3346.2,3346.1,0.59786]
[1737874035020,1.83437101,3346.2,3346.1,3.80566]
[1737874041533,1.83437101,3346.2,3346.1,0.59786]
[1737874041923,1.83437101,3346.2,3346.1,3.80566]
[1737874044726,2.80002596,3346.2,3346.1,3.80566]
[1737874051143,2.80002596,3346.2,3346.1,0.59786]
[1737874053941,1.83437101,3346.2,3346.1,0.59786]
[1737874054240,1.83437101,3346.2,3346.1,1.07686]
[1737874066155,1.32677101,3346.2,3346.1,1.07686]
[1737874066658,1.32677101,3346.2,3346.1,0.59786]
[1737874082562,0.96565495,3346.2,3346.1,0.59786]
[1737874082761,0.96565495,3346.4,3346.3,0.59782]
[1737874082958,0.96565495,3346.4,3346.3,3.80562]
[1737874099474,1.56345495,3346.4,3346.3,3.2078]
[1737874099771,1.92432991,3346.4,3346.3,3.2078]
[1737874100167,1.32652991,3346.4,3346.3,3.2078]
[1737874100565,0.96565495,3346.4,3346.3,3.80562]
[1737874100770,2.46225495,3346.4,3346.3,3.80562]
[1737874101170,2.82318099,3346.4,3346.3,3.80562]
[1737874101371,2.82318099,3346.4,3346.3,3.2078]
[1737874101568,3.42098099,3346.4,3346.3,3.2078]
[1737874103979,2.82318099,3346.4,3346.3,3.2078]
[1737874104674,3.42098099,3346.4,3346.3,3.2078]
[1737874104863,4.38663594,3346.4,3345.9,3.80568]
[1737874105071,0.96565495,3346.0,3345.9,3.80568]
[1737874106781,0.96565495,3346.0,3345.9,0.59788]
[1737874107777,1.9313099,3346.0,3345.9,0.59788]
[1737874107977,0.96565495,3346.0,3345.9,0.59788]
[1737874141108,0.96565495,3346.0,3345.9,3.80568]
[1737874141306,1.32725309,3346.0,3345.9,3.80568]
[1737874141607,0.96565495,3346.0,3345.9,3.80568]
[1737874144008,0.96565495,3346.0,3345.9,0.59788]
[1737874144313,0.96565495,3346.0,3345.9,3.80568]
[1737874145506,1.32726515,3346.0,3345.9,3.80568]
[1737874148814,0.96565495,3346.0,3345.9,3.80568]
[1737874149016,1.4966,3346.4,3345.9,3.2078]
[1737874149017,0.96565495,3346.3,3345.9,3.2078]
[1737874149218,1.4966,3346.4,3345.9,3.692]
[1737874149219,0.36158888,3346.2,3345.9,3.692]
[1737874149422,0.36158888,3346.3,3346.2,0.59784]
[1737874150413,1.46105495,3346.4,3346.3,0.59782]
[1737874150613,1.82244454,3346.4,3346.3,0.59782]
[1737874151712,1.82244454,3346.4,3346.3,3.80562]
[1737874152425,1.46105495,3346.4,3346.3,3.80562]
[1737874153915,1.82229106,3346.4,3346.3,3.80562]
[1737874154117,2.42009106,3346.4,3346.3,3.2078]
[1737874155618,1.82229106,3346.4,3346.1,0.59784]
[1737874155816,0.96565495,3346.2,3346.1,0.59784]
[1737874156021,1.32689106,3346.2,3346.1,0.59784]
[1737874156320,1.82449106,3346.2,3346.1,0.59784]
[1737874187740,1.32689106,3346.2,3346.1,0.59784]
[1737874200961,0.36123611,3346.2,3346.1,0.59784]
[1737874201158,0.36123611,3346.4,3346.3,0.59782]
[1737874201856,0.36123611,3346.4,3346.3,3.80562]
[1737874202259,0.84723611,3346.4,3346.3,3.80562]
[1737874202462,1.33383611,3346.4,3346.3,3.80562]
[1737874203661,0.36123611,3346.4,3346.3,3.80562]
[1737874212370,0.36123611,3346.4,3346.3,3.2078]
[1737874212569,0.59785,3346.2,3345.9,3.7138]
[1737874212771,1.36393611,3346.1,3346.0,0.59786]
[1737874212968,1.83623611,3346.1,3346.0,0.59786]
[1737874213973,2.80189106,3346.1,3346.0,0.59786]
[1737874214866,0.96565495,3346.1,3346.0,0.59786]
[1737874215073,0.96565495,3346.1,3346.0,1.62606]
[1737874216878,0.96565495,3346.1,3346.0,1.11956]
[1737874225377,1.32701933,3346.1,3346.0,1.11956]
[1737874225574,0.96565495,3346.1,3346.0,1.11956]
[1737874232882,0.96565495,3346.1,3346.0,4.32736]
[1737874238785,1.32713203,3346.1,3346.0,3.2078]
[1737874240084,1.32713203,3346.1,3346.0,3.80567]
[1737874241781,1.32713203,3346.1,3346.0,3.2078]
[1737874242088,1.32713203,3346.1,3346.0,3.80567]
[1737874242489,0.96565495,3346.1,3346.0,3.80567]
[1737874244182,1.32692932,3346.1,3346.0,3.2078]
[1737874244890,1.32692932,3346.1,3346.0,3.80567]
[1737874261711,1.32692932,3346.1,3346.0,0.59787]
[1737874262215,1.32692932,3346.1,3346.0,3.80567]
[1737874262612,1.32692932,3346.1,3346.0,0.59787]
[1737874262819,1.32692932,3346.1,3346.0,3.80567]
[1737874264010,1.32692932,3346.1,3346.0,0.59787]
[1737874264517,1.32692932,3346.1,3346.0,3.80567]
[1737874267809,1.92478932,3346.1,3346.0,3.2078]
[1737874269111,2.89044427,3346.1,3346.0,3.2078]
[1737874270120,1.92478932,3346.1,3346.0,3.2078]
[1737874270721,1.92478932,3346.1,3345.7,0.59791]
[1737874270722,0.5979,3345.9,3345.7,3.80571]
[1737874270914,2.36292932,3345.8,3345.7,3.80571]
[1737874271623,2.00165495,3345.8,3345.7,3.80571]
[1737874271920,2.36295879,3345.8,3345.0,3.97754068]
[1737874272124,1.56365495,3345.3,3345.0,4.47274068]
[1737874272322,1.92479837,3345.3,3345.1,0.4916]
[1737874273325,1.92479837,3345.3,3345.1,1.08963]
[1737874275024,1.92479837,3345.3,3345.1,0.4916]
[1737874275426,1.92479837,3345.3,3344.8,0.4811]
[1737874275725,1.92479837,3345.3,3344.9,0.59806]
[1737874275925,1.92479837,3345.3,3344.8,0.4811]
[1737874276226,1.92479837,3345.3,3344.8,1.07918]
[1737874278826,1.92479837,3345.3,3344.8,0.4811]
[1737874279125,1.92479837,3345.3,3345.0,0.59804]
[1737874279921,1.56365495,3345.3,3345.0,0.59804]
[1737874280419,1.56365495,3345.3,3344.8,0.4811]
[1737874280420,0.96565495,3345.3,3345.2,0.60250062]
[1737874281825,2.5293099,3345.3,3345.2,0.00448062]
[1737874282430,3.38659603,3345.3,3345.2,0.00448062]
[1737874283331,3.0263099,3345.3,3345.2,0.00448062]
[1737874283527,2.06065495,3345.3,3345.2,0.00448062]
[1737874283720,3.0263099,3345.3,3345.2,0.00448062]
[1737874286230,2.06065495,3345.3,3345.2,0.00448062]
[1737874286433,3.0263099,3345.3,3345.2,0.00448062]
[1737874288735,3.38647508,3345.3,3345.2,0.00448062]
[1737874288936,3.0263099,3345.3,3345.2,0.00448062]
[1737874289235,3.38650134,3345.3,3345.2,0.00448062]
[1737874289534,3.0263099,3345.3,3345.2,0.00448062]
[1737874289834,3.38649775,3345.3,3345.2,0.00448062]
[1737874290433,3.0263099,3345.3,3345.2,0.00448062]
[1737874290734,3.38649975,3345.3,3345.2,0.00448062]
[1737874291126,3.38649587,3345.3,3345.2,0.00448062]
[1737874291327,3.0263099,3345.3,3345.2,0.00448062]
[1737874291633,3.38649898,3345.3,3345.2,0.00448062]
[1737874292434,3.86459898,3345.3,3345.2,0.00448062]
[1737874307240,1.32584403,3345.3,3345.2,0.00448062]
[1737874307540,1.32584403,3345.3,3345.2,0.60250062]
[1737874310146,0.96565495,3345.5,3345.4,0.59798]
[1737874310347,0.96565495,3345.5,3345.4,3.80578]
[1737874311047,0.96565495,3345.5,3345.4,0.59798]
[1737874311341,0.96565495,3345.5,3345.4,3.80578]
[1737874312143,1.32688996,3345.5,3345.4,3.80578]
[1737874312445,0.96565495,3345.5,3345.4,3.80578]
[1737874312647,1.32681449,3345.5,3345.4,3.80578]
[1737874313042,0.96565495,3345.5,3345.4,4.32408]
[1737874316252,0.96565495,3345.5,3345.4,0.5183]
[1737874316452,0.59798,3345.4,3345.3,0.4819]
[1737874316753,0.95893285,3345.4,3345.3,0.4819]
[1737874316948,0.598,3345.3,3345.2,0.00448062]
[1737874317149,1.9246078,3345.3,3345.2,0.00448062]
[1737874317345,2.89026275,3345.3,3345.2,0.00448062]
[1737874317552,3.36326275,3345.3,3345.2,0.00448062]
[1737874317754,2.3976078,3345.3,3345.2,0.00448062]
[1737874318048,3.36326275,3345.3,3345.2,0.00448062]
[1737874320348,4.29426275,3345.3,3345.2,0.00448062]
[1737874321266,6.48876275,3345.3,3345.2,0.00448062]
[1737874321445,7.38576275,3345.3,3344.5,3.2078]
[1737874321753,0.96565495,3344.6,3344.5,3.80594]
[1737874340952,1.56377495,3344.6,3344.5,3.2078]
[1737874343360,1.92437411,3344.6,3344.5,3.2078]
[1737874343861,1.56377495,3344.6,3344.5,3.2078]
[1737874344260,1.92437052,3344.6,3344.5,3.2078]
[1737874352868,1.32625052,3344.6,3344.5,3.80594]
[1737874354971,1.32625052,3344.6,3344.5,0.59814]
[1737874359267,0.96565495,3344.6,3344.5,0.59814]
[1737874360174,1.5265,3344.8,3344.3,3.7219]
[1737874360175,1.98705495,3344.8,3344.3,3.7219]
[1737874360374,1.98705495,3344.8,3344.7,0.59811]
[1737874360583,2.34813191,3344.8,3344.7,0.59811]
[1737874360769,1.98705495,3344.8,3344.7,0.59811]
[1737874376487,2.82897325,3344.8,3344.6,3.2078]
[1737874376684,0.9590293,3344.7,3344.6,3.2078]
[1737874379593,0.3609193,3344.7,3344.3,0.59818]
[1737874379795,0.96565495,3344.4,3344.3,0.59818]
[1737874380193,1.45135495,3344.4,3344.3,0.59818]
[1737874383094,1.94675495,3344.4,3344.2,3.21228062]
[1737874383281,0.4884,3344.3,3344.2,3.81046062]
[1737874397102,0.00448062,3344.9,3344.2,3.21228062]
[1737874397103,0.96565495,3344.6,3344.2,3.21228062]
[1737874397297,0.96565495,3344.6,3344.5,0.59814]
[1737874397604,0.96565495,3344.8,3344.7,0.59811]
[1737874397804,0.96565495,3344.8,3344.7,3.80591]
[1737874406399,1.3266353,3344.8,3344.7,3.80591]
[1737874406600,0.96565495,3344.8,3344.7,3.80591]
[1737874407003,0.96565495,3344.8,3344.7,0.59811]
[1737874412414,0.00448062,3344.9,3344.8,0.59809]
[1737874415613,0.00448062,3344.9,3344.8,1.07479]
[1737874417015,0.00448062,3344.9,3344.8,2.04044495]
[1737874417316,0.96565495,3345.2,3345.1,0.59803]
[1737874417513,0.96565495,3345.2,3345.1,3.80583]
[1737874423710,0.96565495,3345.2,3345.1,3.2078]
[1737874423915,1.56367495,3345.2,3345.1,3.2078]
[1737874425317,1.92382708,3345.2,3345.1,3.2078]
[1737874425513,1.56367495,3345.2,3345.1,3.2078]
[1737874427821,1.92387559,3345.2,3345.1,3.2078]
[1737874428018,1.56367495,3345.2,3345.1,3.2078]
[1737874429520,1.92390829,3345.2,3345.1,3.2078]
[1737874430419,1.56367495,3345.2,3345.1,3.2078]
[1737874430617,1.92392404,3345.2,3345.1,3.2078]
[1737874436829,1.92392404,3345.2,3345.0,0.59805]
[1737874437028,0.36024909,3345.1,3345.0,0.59805]
[1737874437728,1.56367495,3345.2,3345.0,0.59805]
[1737874441227,1.56367495,3345.2,3344.7,3.2078]
[1737874441434,0.96565495,3344.8,3344.7,3.80591]
[1737874443128,0.96565495,3345.0,3344.7,3.80591]
[1737874443330,0.96565495,3345.2,3345.1,0.59803]
[1737874443536,0.96565495,3345.2,3345.1,3.80583]
[1737874444240,3.16015495,3345.4,3345.3,0.598]
[1737874444433,0.96565495,3345.4,3345.3,0.598]
[1737874452942,0.96565495,3345.4,3345.3,1.1022]
[1737874454953,0.96565495,3345.4,3345.3,1.6136]
[1737874465367,0.96565495,3345.4,3345.3,1.1022]
[1737874466361,0.96565495,3345.4,3345.3,0.598]
[1737874466556,1.48745495,3345.4,3345.3,0.598]
[1737874470764,1.84835728,3345.4,3345.3,0.598]
[1737874471468,1.84841266,3345.4,3345.3,0.598]
[1737874471958,1.48745495,3345.4,3345.3,0.598]
[1737874472866,1.84850926,3345.4,3345.3,0.598]
[1737874473068,1.48745495,3345.4,3345.3,0.598]
[1737874473367,1.84867263,3345.4,3345.3,0.598]
[1737874475767,1.48745495,3345.4,3345.3,0.598]
[1737874482273,1.97545495,3345.4,3345.3,0.598]
[1737874484373,2.33662786,3345.4,3345.3,0.598]
[1737874484573,1.97545495,3345.4,3345.3,0.598]
[1737874485877,2.33663103,3345.4,3345.3,0.598]
[1737874486379,1.97545495,3345.4,3345.3,0.598]
[1737874487680,2.33663544,3345.4,3345.3,0.598]
[1737874488778,1.97545495,3345.4,3345.3,0.598]
[1737874489373,2.33663677,3345.4,3345.3,0.598]
[1737874490375,1.97545495,3345.4,3345.3,0.598]
[1737874490777,2.33664573,3345.4,3345.3,0.598]
[1737874490979,1.97545495,3345.4,3345.3,0.598]
[1737874497280,2.33685866,3345.4,3345.3,0.598]
[1737874497580,1.97545495,3345.4,3345.3,0.598]
[1737874500284,1.0098,3345.4,3345.3,0.598]
[1737874502684,1.37124904,3345.4,3345.3,0.598]
[1737874502882,1.0098,3345.4,3345.3,0.598]
[1737874504080,1.37125976,3345.4,3345.3,0.598]
[1737874504280,1.0098,3345.4,3345.3,0.598]
[1737874505280,1.37126597,3345.4,3345.3,0.598]
[1737874510983,1.37126597,3345.4,3345.1,3.2078]
[1737874510984,0.59802,3345.2,3345.1,3.2078]
[1737874511184,1.92514092,3345.2,3345.1,3.2078]
[1737874513587,1.56367495,3345.2,3345.1,3.2078]
[1737874514393,1.92464737,3345.2,3345.1,3.2078]
[1737874514585,1.56367495,3345.2,3345.1,3.2078]
[1737874516391,1.56367495,3345.2,3345.0,0.59804]
[1737874516592,0.4802,3345.1,3345.0,3.80584]
[1737874518095,0.4802,3345.1,3345.0,0.59804]
[1737874518395,0.4802,3345.1,3345.0,3.80584]
[1737874519888,1.07823,3345.1,3345.0,3.2078]
[1737874520091,0.4802,3345.1,3345.0,3.2078]
[1737874520299,0.4802,3345.1,3345.0,3.80585]
[1737874521703,1.07823,3345.1,3345.0,3.2078]
[1737874521902,0.5981,3344.8,3344.6,3.80591]
[1737874522104,0.5047,3344.7,3344.6,3.80591]
[1737874522801,0.5047,3344.7,3344.6,3.2078]
[1737874523003,1.10281,3344.7,3344.6,3.2078]
[1737874539114,0.59814,3344.5,3344.3,3.80597]
[1737874539315,0.96565495,3344.4,3344.3,3.80597]
[1737874540117,0.96565495,3344.6,3344.5,0.59814]
[1737874540705,0.96565495,3344.6,3344.5,1.12014]
[1737874555724,0.96565495,3344.6,3344.5,0.522]
[1737874555725,1.56377495,3344.6,3344.5,0.522]
[1737874555931,0.59815,3344.5,3344.3,3.2078]
[1737874556126,0.96565495,3344.4,3344.3,3.2078]
[1737874556421,0.96565495,3344.4,3344.3,3.80598]
[1737874557726,0.96565495,3344.4,3344.3,3.2078]
[1737874558034,1.56381495,3344.4,3344.3,3.2078]
[1737874558333,2.07081495,3344.4,3344.3,3.2078]
[1737874561029,2.43181588,3344.4,3344.3,3.2078]
[1737874562329,2.07081495,3344.4,3344.3,3.2078]
[1737874562841,2.43178307,3344.4,3344.3,3.2078]
[1737874563134,2.07081495,3344.4,3344.3,3.2078]
[1737874563635,2.43177264,3344.4,3344.3,3.2078]
[1737874564527,2.07081495,3344.4,3344.3,3.2078]
[1737874565239,1.83361388,3344.4,3344.3,3.80598]
[1737874565534,1.83360962,3344.4,3344.3,3.80598]
[1737874566035,1.47265495,3344.4,3344.3,3.80598]
[1737874566233,1.47265495,3344.4,3344.3,3.2078]
[1737874573139,1.83357519,3344.4,3344.3,3.2078]
[1737874573342,1.47265495,3344.4,3344.3,3.2078]
[1737874573537,1.47265495,3344.4,3344.3,3.80598]
[1737874573732,1.0083,3344.5,3344.4,0.59816]
[1737874574037,0.96565495,3344.6,3344.5,0.59814]
[1737874574233,1.32659,3344.6,3344.5,0.59814]
[1737874578036,1.32659,3344.6,3344.3,3.2078]
[1737874578242,0.96565495,3344.4,3344.3,3.80598]
[1737874582139,0.96565495,3344.6,3344.4,0.59815]
[1737874584439,0.5102,3344.5,3344.4,0.59815]
[1737874586242,0.87128894,3344.5,3344.4,0.59815]
[1737874586544,0.5102,3344.5,3344.4,0.59815]
[1737874587041,0.5102,3344.5,3344.4,1.08185]
[1737874589035,0.87128012,3344.5,3344.4,1.08185]
[1737874590741,1.45345495,3344.8,3344.6,0.59812]
[1737874590932,0.85948663,3344.7,3344.6,0.59812]
[1737874594142,0.85948663,3344.7,3344.3,3.80597]
[1737874594338,0.96565495,3344.5,3344.3,3.2078]
[1737874594537,0.4971,3344.4,3344.3,3.2078]
[1737874594844,2.07886,3344.4,3344.3,3.2078]
[1737874595739,2.4399168,3344.4,3344.3,3.2078]
[1737874600434,1.8417568,3344.4,3344.2,3.21228062]
[1737874600638,1.56383495,3344.3,3344.2,3.21228062]
[1737874603347,0.96565495,3344.3,3344.2,3.21228062]
[1737874603748,1.56383495,3344.3,3344.2,3.21228062]
[1737874606952,0.96565495,3344.3,3344.2,3.81047062]
[1737874613264,0.96565495,3344.3,3344.2,0.60267062]
[1737874613454,0.96565495,3344.3,3344.2,3.81047062]
[1737874615060,0.96565495,3344.3,3344.2,0.60267062]
[1737874615258,0.96565495,3344.3,3344.2,3.81047062]
[1737874616463,0.96565495,3344.3,3344.2,0.60267062]
[1737874616664,0.96565495,3344.3,3344.2,3.81047062]
[1737874619563,1.32668821,3344.3,3344.2,3.81047062]
[1737874620264,0.96565495,3344.3,3344.2,3.81047062]
[1737874623271,1.32677812,3344.3,3344.2,3.81047062]
[1737874624170,0.96565495,3344.3,3344.2,3.81047062]
[1737874626769,0.96565495,3344.3,3344.2,0.60267062]
[1737874626969,0.96565495,3344.5,3344.2,3.21228062]
[1737874627173,0.96565495,3344.5,3344.4,0.59816]
[1737874627474,1.32678041,3344.5,3344.4,0.59816]
[1737874634078,0.96565495,3344.5,3344.4,0.59816]
[1737874637970,1.3266452,3344.5,3344.4,0.59816]
[1737874639481,0.96565495,3344.5,3344.4,0.59816]
[1737874639784,1.32665175,3344.5,3344.4,0.59816]
[1737874639980,2.2927543,3344.5,3344.4,0.59816]
[1737874640171,1.93175495,3344.5,3344.4,0.59816]
[1737874640778,2.2927448,3344.5,3344.4,0.59816]
[1737874646484,2.2927448,3344.5,3344.4,3.80596]
[1737874650087,2.2927448,3344.5,3344.4,3.2078]
[1737874652490,2.8908848,3344.5,3344.4,3.2078]
[1737874653890,2.8908848,3344.5,3343.8,0.9603]
[1737874653891,0.59823,3344.0,3343.7,0.59828]
[1737874654192,0.96565495,3343.8,3343.6,3.80609]
[1737874655083,1.56392495,3343.8,3343.6,3.80609]
[1737874656889,1.56392495,3343.8,3343.7,0.59828]
[1737874656890,0.96565495,3343.8,3343.7,0.59828]
[1737874660702,0.96565495,3344.0,3343.9,0.59825]
[1737874662597,0.96565495,3344.2,3344.1,0.59821]
[1737874662906,0.96565495,3344.2,3344.1,3.80601]
[1737874666001,0.96565495,3344.4,3344.1,3.2078]
[1737874666203,0.96565495,3344.4,3344.3,0.59818]
[1737874670006,0.96565495,3344.4,3344.3,1.09418]
[1737874675907,0.96565495,3344.4,3344.3,0.59818]
[1737874676508,0.96565495,3344.4,3344.2,0.59819]
[1737874685216,1.56382495,3344.4,3344.2,0.59819]
[1737874685513,0.4833,3344.3,3344.2,0.59819]
[1737874688307,0.84444499,3344.3,3344.2,0.59819]
[1737874688612,0.4833,3344.3,3344.2,0.59819]
[1737874689408,0.84455349,3344.3,3344.2,0.59819]
[1737874690110,0.4833,3344.3,3344.2,0.59819]
[1737874690416,0.84469753,3344.3,3344.2,0.59819]
[1737874693919,0.84479277,3344.3,3344.2,0.59819]
[1737874699017,0.84479277,3344.3,3344.1,3.2078]
[1737874699219,1.95835495,3344.2,3344.1,3.806]
[1737874704219,2.31992401,3344.2,3344.1,3.806]
[1737874704718,1.95835495,3344.2,3344.1,3.806]
[1737874706027,2.31993455,3344.2,3344.1,3.806]
[1737874708819,1.95835495,3344.2,3344.1,3.806]
[1737874716234,2.3197312,3344.2,3344.1,3.806]
[1737874717033,1.95835495,3344.2,3344.1,3.806]
[1737874717434,2.31973329,3344.2,3344.1,3.806]
[1737874720528,1.95835495,3344.2,3344.1,3.806]
[1737874720734,2.3197167,3344.2,3344.1,3.806]
[1737874723932,1.95835495,3344.2,3344.1,3.806]
[1737874735139,0.96565495,3344.2,3344.1,3.806]
[1737874740142,0.96565495,3344.4,3344.1,3.2078]
[1737874740346,0.96565495,3344.6,3344.5,0.59814]
[1737874740543,1.3269811,3344.6,3344.5,3.80594]
[1737874740750,0.96565495,3344.6,3344.5,3.80594]
[1737874753044,0.96565495,3344.6,3344.5,3.2078]
[1737874753045,1.56377495,3344.6,3344.5,3.2078]
[1737874755150,0.59814,3344.5,3344.4,0.59816]
[1737874755349,3.03209495,3344.5,3344.4,3.80596]
[1737874755956,2.43395495,3344.5,3344.4,3.80596]
[1737874759550,3.03209495,3344.5,3344.4,3.80596]
[1737874761759,3.03209495,3344.5,3344.4,0.59816]
[1737874762355,3.03209495,3344.5,3344.3,0.59817]
[1737874762552,0.96565495,3344.4,3344.3,0.59817]
[1737874763349,1.56382495,3344.4,3344.1,0.5982]
[1737874763554,0.96565495,3344.2,3344.1,0.5982]
[1737874769165,0.96565495,3344.2,3344.1,3.806]
[1737874774567,0.96565495,3344.2,3343.7,1.21891649]
[1737874774568,0.59822,3344.1,3343.9,0.59824]
[1737874774769,1.56389495,3344.0,3343.7,3.80607]
[1737874774961,0.96565495,3343.8,3343.7,3.80607]
[1737874775362,1.46755495,3343.8,3343.7,3.80607]
[1737874793081,1.46755495,3343.8,3343.7,0.59827]
[1737874798483,1.46755495,3343.8,3343.7,3.80607]
[1737874808189,1.82898272,3343.8,3343.7,3.80607]
[1737874808388,0.96565495,3343.8,3343.7,3.80607]
[1737874808596,0.96565495,3344.0,3343.9,0.59825]
[1737874813894,0.96565495,3344.4,3343.9,0.8340088]
[1737874814090,0.96565495,3344.4,3344.3,0.59818]
[1737874816998,0.96565495,3344.4,3344.3,41.39818]
[1737874818907,0.96565495,3344.4,3344.3,0.59818]
[1737874825302,0.96565495,3344.4,3344.3,1.08828]
[1737874827404,0.96565495,3344.4,3344.3,1.32922986]
[1737874828504,0.96565495,3344.6,3344.3,0.73104986]
[1737874828706,0.96565495,3344.6,3344.5,0.59814]
[1737874837912,1.45315495,3344.8,3344.7,0.59811]
[1737874838212,1.45315495,3344.8,3344.7,3.80591]
[1737874839907,0.96565495,3344.8,3344.7,3.80591]
[1737874843310,0.96565495,3345.0,3344.7,3.2078]
[1737874843511,0.96565495,3345.0,3344.9,0.59807]
[1737874843712,0.96565495,3345.2,3345.1,0.59803]
[1737874844017,0.96565495,3345.2,3345.1,3.80583]
[1737874867330,0.96565495,3345.2,3344.4,0.96565495]
[1737874867331,2.29244049,3345.2,3344.6,3.2078]
[1737874867535,0.96565495,3344.7,3344.6,3.2078]
[1737874868025,2.47245495,3344.7,3344.6,3.2078]
[1737874868220,2.47245495,3344.7,3344.6,3.80592]
[1737874868432,0.96565495,3345.1,3344.6,4.17345495]
[1737874868733,0.96565495,3345.1,3345.0,3.80584]
[1737874871920,0.96565495,3345.1,3345.0,3.2078]
[1737874872331,1.83128087,3345.1,3345.0,3.2078]
[1737874872528,1.83127896,3345.1,3345.0,3.2078]
[1737874872834,1.47025495,3345.1,3345.0,3.2078]
[1737874873128,2.79691222,3345.1,3344.6,3.2078]
[1737874873326,0.96565495,3344.7,3344.6,3.80591]
[1737874874144,1.45035495,3344.7,3344.6,3.80591]
[1737874874530,1.45035495,3344.7,3344.6,3.2078]
[1737874874832,1.45035495,3344.7,3344.6,3.80592]
[1737874895967,1.45035495,3344.7,3344.6,0.59812]
[1737874896169,1.45035495,3344.7,3344.6,3.80592]
[1737874896767,0.96565495,3344.7,3344.6,3.80592]
[1737874901769,0.96565495,3344.7,3344.6,4.30942]
[1737874902969,0.96565495,3344.9,3344.6,4.30942]
[1737874903175,0.96565495,3344.9,3344.8,0.59809]
[1737874903375,0.96565495,3345.1,3345.0,0.59805]
[1737874903571,0.96565495,3345.1,3345.0,44.60585]
[1737874906274,0.96565495,3345.1,3345.0,3.80585]
[1737874925295,1.32707461,3345.1,3345.0,3.80585]
[1737874925980,0.96565495,3345.1,3345.0,3.80585]
[1737874926381,1.32712961,3345.1,3345.0,3.80585]
[1737874930994,2.29278456,3345.1,3345.0,3.2078]
[1737874931193,2.89081456,3345.1,3345.0,3.2078]
[1737874934104,0.59811,3344.7,3344.6,3.2078]
[1737874934593,0.36122951,3344.7,3344.6,3.80592]
[1737874934794,1.83601545,3344.7,3344.6,3.80592]
[1737874935701,1.83601545,3344.7,3344.6,0.59812]
[1737874936293,1.4748,3344.7,3344.6,0.59812]
[1737874936509,1.83588471,3344.7,3344.6,0.59812]
[1737874936698,1.4748,3344.7,3344.6,0.59812]
[1737874936900,0.59814,3344.6,3344.3,41.39817]
[1737874937099,0.96565495,3344.4,3344.3,0.59817]
[1737874939403,0.96565495,3344.4,3344.0,44.0078]
[1737874939694,0.5186,3344.3,3344.2,0.59819]
[1737874950396,0.5186,3344.3,3344.2,3.80599]
[1737874959318,1.0326,3344.3,3344.2,3.80599]
[1737874960714,1.0326,3344.3,3344.2,0.59819]
[1737874961315,0.59825,3343.9,3343.4,0.00448062]
[1737874961515,0.96565495,3343.5,3343.4,3.81062062]
[1737874968721,0.96565495,3343.5,3343.4,3.21228062]
[1737874968923,1.56397495,3343.5,3343.4,3.21228062]
[1737874973930,1.56397495,3343.5,3343.4,0.00448062]
[1737874981841,6.9313099,3343.5,3342.5,3.8063]
[1737874982037,0.96565495,3342.6,3342.5,3.8063]
[1737874983352,1.46365495,3342.6,3342.5,3.8063]
[1737874986047,0.96565495,3342.6,3342.5,3.8063]
[1737874992149,0.96565495,3342.6,3342.5,3.2078]
[1737874992658,1.56413495,3342.6,3342.5,3.2078]
[1737874994060,6.9313099,3342.6,3342.2,0.00448758]
[1737874994252,0.96565495,3343.1,3342.2,0.00448758]
[1737874994253,2.5298399,3342.3,3342.2,0.00448758]
[1737874995452,1.56418495,3342.3,3342.2,0.00448758]